bitfinex/quotes_SOLUSD_20260311
["timestamp","ask_amount","ask_price","bid_price","bid_amount"]
[1773218183956,75.86222922,85.682,85.582,1.7980045]
[1773218183957,29.1779326,85.682,85.582,1.7980045]
[1773218184160,29.1779326,85.682,85.6,9.36931005]
[1773218184360,9.36931005,85.65,85.62,9.36931005]
[1773218184562,9.36931005,85.65,85.601,1.7980045]
[1773218184563,9.36931005,85.65,85.61,1.7980045]
[1773218184743,9.36931005,85.65,85.611,11.68074196]
[1773218185356,9.36931005,85.66,85.612,1.7980045]
[1773218185657,9.36931005,85.65,85.612,1.7980045]
[1773218185856,1.89199043,85.649,85.612,1.7980045]
[1773218186468,1.89199043,85.649,85.611,11.68074196]
[1773218186469,9.36931005,85.64,85.611,11.68074196]
[1773218186660,9.36931005,85.63,85.6,9.36931005]
[1773218186851,9.36931005,85.65,85.584,11.68430748]
[1773218186852,9.36931005,85.62,85.584,11.68430748]
[1773218187156,9.36931005,85.65,85.61,9.36931005]
[1773218187157,9.36931005,85.64,85.61,9.36931005]
[1773218187360,9.36931005,85.64,85.601,1.7980045]
[1773218187559,1.89199043,85.629,85.59,9.36931005]
[1773218187762,1.89199043,85.641,85.6,9.36931005]
[1773218187964,1.89199043,85.666,85.63,9.36931005]
[1773218188265,9.36931005,85.66,85.63,9.36931005]
[1773218188461,1.89199043,85.666,85.631,1.7980045]
[1773218188651,1.89199043,85.666,85.64,9.36931005]
[1773218189247,1.89199043,85.666,85.632,11.67787742]
[1773218189457,1.89199043,85.666,85.64,9.36931005]
[1773218190552,1.89199043,85.666,85.6,9.36931005]
[1773218190553,9.36931005,85.66,85.624,11.67885612]
[1773218190873,1.89199043,85.639,85.6,9.36931005]
[1773218191069,1.89199043,85.639,85.61,9.36931005]
[1773218191773,1.89199043,85.629,85.6,9.36931005]
[1773218192071,1.89199043,85.629,85.58,1.7980045]
[1773218192283,1.89199043,85.629,85.575,40.89979549]
[1773218192284,1.89199043,85.619,85.59,9.36931005]
[1773218192456,3.69383402,85.647,85.56,9.36931005]
[1773218192457,1.89199043,85.599,85.56,9.36931005]
[1773218192646,9.36931005,85.59,85.56,21.05700845]
[1773218192845,9.36931005,85.59,85.551,13.48689895]
[1773218192846,1.89199043,85.589,85.551,13.48689895]
[1773218193047,11.26130048,85.6,85.561,1.7980045]
[1773218193365,11.68046908,85.613,85.551,11.68889445]
[1773218193366,1.89199043,85.589,85.551,11.68889445]
[1773218193566,1.89199043,85.589,85.56,9.36931005]
[1773218193877,9.36931005,85.61,85.57,9.36931005]
[1773218194052,9.36931005,85.61,85.571,1.7980045]
[1773218194450,9.36931005,85.6,85.571,1.7980045]
[1773218194649,9.36931005,85.6,85.562,11.68743133]
[1773218194861,1.89199043,85.599,85.57,9.36931005]
[1773218195064,2.52,85.626,85.59,11.16731455]
[1773218195065,1.89199043,85.625,85.59,11.16731455]
[1773218195374,1.89199043,85.634,85.6,9.36931005]
[1773218195565,11.26130048,85.63,85.6,9.36931005]
[1773218195765,1.89199043,85.63,85.6,9.36931005]
[1773218195963,1.89199043,85.629,85.6,9.36931005]
[1773218196167,11.67737542,85.636,85.6,9.36931005]
[1773218196360,11.67737542,85.636,85.61,9.36931005]
[1773218196569,9.36931005,85.63,85.6,9.36931005]
[1773218196776,1.89199043,85.629,85.6,9.36931005]
[1773218197077,1.89199043,85.622,85.581,1.7980045]
[1773218197276,9.36931005,85.62,85.59,9.36931005]
[1773218197970,11.26130048,85.62,85.59,9.36931005]
[1773218198172,1.89199043,85.619,85.59,9.36931005]
[1773218198470,1.89199043,85.619,85.581,1.7980045]
[1773218198679,1.89199043,85.619,85.59,9.36931005]
[1773218198865,1.8193598,85.617,85.581,11.68483658]
[1773218199462,1.8193598,85.609,85.557,1.83511072]
[1773218199666,1.8193598,85.593,85.56,9.36931005]
[1773218199860,1.8193598,85.617,85.58,9.36931005]
[1773218200066,9.36931005,85.61,85.58,9.36931005]
[1773218200669,1.8193598,85.609,85.58,9.36931005]
[1773218200877,1.8193598,85.609,85.571,11.6862021]
[1773218201275,11.18866985,85.6,85.571,11.6862021]
[1773218201454,1.8193598,85.599,85.571,11.6862021]
[1773218201963,1.8193598,85.579,85.55,9.36931005]
[1773218202364,9.36931005,85.59,85.56,9.36931005]
[1773218202674,2.56,85.6,85.56,9.36931005]
[1773218202675,1.8193598,85.589,85.56,9.36931005]
[1773218202872,1.8193598,85.589,85.526,46.76891856]
[1773218202873,1.8193598,85.577,85.527,11.69221415]
[1773218203072,11.6852462,85.578,85.53,9.36931005]
[1773218203073,11.18866985,85.56,85.53,9.36931005]
[1773218203275,11.18866985,85.56,85.527,11.69221415]
[1773218203472,11.18866985,85.56,85.53,9.36931005]
[1773218203673,1.8193598,85.559,85.521,11.69299791]
[1773218203979,9.36931005,85.55,85.521,11.69299791]
[1773218204563,11.18866985,85.55,85.521,11.69299791]
[1773218204985,1.8193598,85.539,85.51,9.36931005]
[1773218206165,13.50856715,85.549,85.51,9.36931005]
[1773218206470,1.8193598,85.548,85.51,9.36931005]
[1773218207076,1.8193598,85.548,85.502,1.83511072]
[1773218207077,13.50884043,85.547,85.52,9.36931005]
[1773218207371,1.8193598,85.547,85.52,9.36931005]
[1773218209269,1.8193598,85.547,85.511,1.83511072]
[1773218209483,9.36931005,85.54,85.515,11.69375981]
[1773218209685,1.8193598,85.545,85.515,11.69375981]
[1773218210275,1.8193598,85.545,85.52,9.36931005]
[1773218210486,1.92652665,85.554,85.52,11.3977735]
[1773218211072,9.36931005,85.56,85.53,9.36931005]
[1773218211273,1.92652665,85.564,85.531,11.69166734]
[1773218211675,9.36931005,85.56,85.531,11.69166734]
[1773218211981,29.20976154,85.588,85.531,11.69166734]
[1773218211982,1.92652665,85.584,85.55,9.36931005]
[1773218212188,1.92652665,85.584,85.55,11.3977735]
[1773218212189,1.92652665,85.583,85.55,11.3977735]
[1773218212385,9.36931005,85.58,85.55,11.3977735]
[1773218212585,9.36931005,85.59,85.56,9.36931005]
[1773218212769,11.2958367,85.59,85.551,2.02846345]
[1773218212964,1.92652665,85.589,85.551,2.02846345]
[1773218213889,1.92652665,85.588,85.552,11.68879745]
[1773218214890,11.6837444,85.589,85.532,29.22872287]
[1773218214891,1.92652665,85.569,85.532,29.22872287]
[1773218215190,9.36931005,85.57,85.48,46.79446731]
[1773218215191,1.92652665,85.559,85.54,9.36931005]
[1773218215401,1.92652665,85.559,85.53,9.36931005]
[1773218216369,1.92652665,85.559,85.531,11.69166734]
[1773218216688,1.92652665,85.565,85.54,9.36931005]
[1773218217689,1.92652665,85.565,85.541,11.69030055]
[1773218218912,1.92652665,85.563,85.532,11.69153065]
[1773218221094,9.36931005,85.56,85.532,11.69153065]
[1773218221276,1.92652665,85.563,85.532,11.69153065]
[1773218221476,1.92652665,85.563,85.54,9.36931005]
[1773218222296,1.92652665,85.563,85.532,11.69153065]
[1773218222673,1.92652665,85.563,85.532,13.7199941]
[1773218223397,1.92652665,85.563,85.541,11.69030055]
[1773218224272,9.37318927,85.59,85.55,9.37318927]
[1773218224504,9.37318927,85.59,85.561,2.02846345]
[1773218225786,11.6837444,85.589,85.561,13.71594169]
[1773218226090,11.6837444,85.589,85.561,11.68747824]
[1773218226288,1.92652665,85.589,85.561,11.68747824]
[1773218227488,1.92652665,85.579,85.553,2.02846345]
[1773218228888,1.92652665,85.577,85.545,11.68972563]
[1773218229093,1.92652665,85.578,85.546,2.02846345]
[1773218229273,1.92652665,85.578,85.551,2.02846345]
[1773218230302,1.92652665,85.578,85.545,11.68972563]
[1773218230476,1.92652665,85.576,85.545,2.02846345]
[1773218231888,1.92652665,85.569,85.541,11.69030055]
[1773218232796,13.61313846,85.568,85.541,11.69030055]
[1773218233103,1.92652665,85.559,85.535,2.02846345]
[1773218233288,1.92652665,85.559,85.531,11.69166734]
[1773218233603,1.92652665,85.549,85.52,9.37318927]
[1773218233786,1.92652665,85.549,85.521,2.02846345]
[1773218234884,13.61587064,85.548,85.521,13.7214979]
[1773218235087,1.92652665,85.548,85.521,13.7214979]
[1773218235294,13.61587064,85.548,85.521,13.7214979]
[1773218235495,1.92652665,85.547,85.521,13.7214979]
[1773218235994,1.92652665,85.56,85.531,2.02846345]
[1773218236303,1.92652665,85.559,85.531,2.02846345]
[1773218236484,13.61436778,85.559,85.531,2.02846345]
[1773218236896,13.61436778,85.559,85.533,2.02846345]
[1773218237201,1.92652665,85.558,85.533,2.02846345]
[1773218238389,1.92652665,85.562,85.533,2.02846345]
[1773218238790,1.92652665,85.559,85.534,11.69125727]
[1773218239007,31.75344111,85.578,85.504,13.72382273]
[1773218239008,1.92652665,85.539,85.504,13.72382273]
[1773218239297,1.92652665,85.539,85.511,2.02846345]
[1773218239883,2.04417382,85.529,85.501,1.95537016]
[1773218240293,2.54,85.539,85.521,1.95537016]
[1773218240882,2.54,85.539,85.522,11.69289773]
[1773218241411,11.68920735,85.549,85.522,11.69289773]
[1773218241590,11.68920735,85.549,85.522,13.64826789]
[1773218243298,11.68920735,85.549,85.523,1.95537016]
[1773218243901,13.73338117,85.549,85.523,1.95537016]
[1773218244107,2.04417382,85.548,85.523,1.95537016]
[1773218247099,2.04417382,85.548,85.525,1.95537016]
[1773218247815,2.04417382,85.555,85.525,1.95537016]
[1773218248510,2.54,85.557,85.531,1.95537016]
[1773218248721,2.04417382,85.562,85.531,1.95537016]
[1773218249318,11.68756793,85.561,85.533,1.95537016]
[1773218249520,2.52,85.568,85.533,1.95537016]
[1773218249521,14.20664153,85.568,85.533,1.95537016]
[1773218249816,11.41736309,85.57,85.533,1.95537016]
[1773218250111,11.68647524,85.569,85.533,1.95537016]
[1773218250320,2.04417382,85.559,85.533,1.95537016]
[1773218251315,2.04417382,85.549,85.521,11.69303445]
[1773218251509,11.68934399,85.548,85.521,11.69303445]
[1773218251710,2.04417382,85.549,85.522,1.95537016]
[1773218253716,2.04417382,85.547,85.523,11.69276101]
[1773218253909,2.04417382,85.539,85.518,11.69343748]
[1773218254413,2.04417382,85.547,85.52,9.37318927]
[1773218254613,2.04417382,85.547,85.518,11.69343748]
[1773218255024,11.68934399,85.548,85.514,1.95537016]
[1773218255025,2.04417382,85.539,85.514,1.95537016]
[1773218255218,2.04417382,85.539,85.514,13.64936178]
[1773218257011,2.04417382,85.539,85.515,1.95537016]
[1773218257718,2.04417382,85.539,85.514,11.69399162]
[1773218258015,13.73488438,85.538,85.514,11.69399162]
[1773218258925,2.04417382,85.537,85.514,11.69399162]
[1773218264209,2.04417382,85.537,85.514,13.6818299]
[1773218264527,2.04417382,85.537,85.515,1.98783828]
[1773218266030,2.04417382,85.537,85.516,11.69371813]
[1773218266920,1.90816694,85.529,85.494,11.69672725]
[1773218267123,9.37318927,85.53,85.494,11.69672725]
[1773218267124,1.90816694,85.519,85.495,1.98783828]
[1773218268036,1.90816694,85.519,85.496,11.69645363]
[1773218268536,1.90816694,85.517,85.496,11.69645363]
[1773218270737,9.37318927,85.52,85.497,1.9109251]
[1773218270926,1.92636879,85.529,85.501,1.9109251]
[1773218271239,9.37318927,85.52,85.501,1.9109251]
[1773218271937,1.92636879,85.523,85.501,1.9109251]
[1773218272313,1.92636879,85.519,85.496,11.69645363]
[1773218272516,1.92636879,85.519,85.496,1.9109251]
[1773218273541,1.92636879,85.518,85.496,1.9109251]
[1773218273733,1.92636879,85.518,85.495,11.69659044]
[1773218274216,9.37318927,85.53,85.496,1.9109251]
[1773218274417,1.92636879,85.529,85.496,1.9109251]
[1773218275038,13.61831482,85.529,85.501,1.9109251]
[1773218275221,11.69194603,85.529,85.501,1.9109251]
[1773218275639,1.92636879,85.528,85.501,1.9109251]
[1773218276020,9.37318927,85.52,85.502,11.69563285]
[1773218276220,1.92636879,85.559,85.511,1.9109251]
[1773218276532,1.92636879,85.559,85.521,1.9109251]
[1773218277535,2.48,85.566,85.514,1.9109251]
[1773218277536,1.92636879,85.549,85.514,1.9109251]
[1773218278119,3.1510826,85.54,85.515,11.69385487]
[1773218278845,1.92636879,85.541,85.52,3.1510826]
[1773218279038,3.1510826,85.53,85.507,1.9109251]
[1773218279226,1.92636879,85.539,85.507,1.9109251]
[1773218279741,1.92636879,85.539,85.51,3.1510826]
[1773218280345,3.1510826,85.53,85.508,11.69481218]
[1773218280523,3.1510826,85.53,85.472,2.8]
[1773218280524,1.92636879,85.519,85.49,14.84835713]
[1773218281042,5.07745139,85.51,85.49,11.69727453]
[1773218281339,1.92636879,85.51,85.49,11.69727453]
[1773218281637,1.92636879,85.509,85.475,1.9109251]
[1773218281822,1.92636879,85.509,85.476,1.9109251]
[1773218282447,1.92636879,85.509,85.478,1.9109251]
[1773218282742,1.92636879,85.509,85.48,3.1510826]
[1773218283037,1.92636879,85.518,85.489,1.9109251]
[1773218283426,1.92636879,85.516,85.489,1.9109251]
[1773218284945,1.92636879,85.509,85.481,11.6985061]
[1773218286032,1.92636879,85.529,85.482,1.9109251]
[1773218286239,1.92636879,85.509,85.482,1.9109251]
[1773218286460,1.92636879,85.509,85.475,11.69926638]
[1773218286640,1.92636879,85.509,85.475,13.61019148]
[1773218287033,1.92636879,85.507,85.475,13.61019148]
[1773218287228,1.92636879,85.499,85.475,11.69926638]
[1773218287547,1.92636879,85.507,85.48,3.15424816]
[1773218287924,1.92636879,85.507,85.476,1.9109251]
[1773218289545,1.92636879,85.499,85.477,11.69905354]
[1773218291640,1.92636879,85.499,85.472,1.9109251]
[1773218293552,1.92636879,85.499,85.465,11.70062245]
[1773218293852,1.92636879,85.497,85.465,11.70062245]
[1773218295044,11.69618002,85.498,85.452,55.06545637]
[1773218295045,1.92636879,85.479,85.452,55.06545637]
[1773218295233,1.92636879,85.479,85.452,11.70244361]
[1773218296142,1.92636879,85.477,85.442,13.61477098]
[1773218296862,1.92636879,85.469,85.44,0.2]
[1773218297163,1.92636879,85.469,85.441,11.70398286]
[1773218297657,1.92636879,85.469,85.44,0.2]
[1773218298962,1.92636879,85.467,85.44,11.90401451]
[1773218299551,1.92636879,85.467,85.44,15.05826267]
[1773218300559,1.92636879,85.467,85.44,11.90401451]
[1773218303250,1.89974487,85.476,85.45,3.15424816]
[1773218303435,2.44,85.477,85.451,1.88525414]
[1773218303831,1.89974487,85.476,85.451,1.88525414]
[1773218304541,1.89974487,85.476,85.452,11.70247624]
[1773218304738,29.24244329,85.493,85.452,11.70247624]
[1773218304739,1.89974487,85.488,85.454,1.88525414]
[1773218304949,1.89974487,85.497,85.471,1.88525414]
[1773218305250,2.42,85.502,85.471,1.88525414]
[1773218305558,4.31974487,85.502,85.471,1.88525414]
[1773218305758,4.31974487,85.502,85.48,3.15424816]
[1773218306053,5.05399303,85.5,85.476,1.88525414]
[1773218306235,1.89974487,85.499,85.47,3.15424816]
[1773218306436,1.89974487,85.499,85.471,1.88525414]
[1773218307044,1.89974487,85.499,85.472,11.69973792]
[1773218307650,11.69618002,85.498,85.472,11.69973792]
[1773218307958,1.89974487,85.497,85.472,11.69973792]
[1773218309761,1.89974487,85.497,85.473,1.88525414]
[1773218310552,1.89974487,85.496,85.472,11.69973792]
[1773218310757,1.89974487,85.479,85.45,3.15424816]
[1773218311171,1.89974487,85.479,85.451,11.70261319]
[1773218311347,1.89974487,85.477,85.451,11.70261319]
[1773218312358,1.89974487,85.477,85.447,11.7031513]
[1773218313567,1.89974487,85.477,85.451,1.88525414]
[1773218314456,1.89974487,85.477,85.452,11.70247624]
[1773218317066,1.89974487,85.477,85.453,2.06554771]
[1773218319970,3.15424816,85.49,85.455,2.06554771]
[1773218320172,3.15424816,85.49,85.461,2.06554771]
[1773218320375,2.04421832,85.489,85.461,2.06554771]
[1773218323571,2.04421832,85.489,85.462,11.70110692]
[1773218325470,3.15424816,85.5,85.445,11.70343495]
[1773218325471,2.04421832,85.479,85.445,11.70343495]
[1773218326176,2.04421832,85.469,85.445,11.70343495]
[1773218330278,1.99320258,85.467,85.445,11.70343495]
[1773218331362,1.99320258,85.467,85.441,11.70398286]
[1773218335087,1.99320258,85.467,85.443,11.7037089]
[1773218335386,1.99320258,85.467,85.444,1.89834496]
[1773218337596,1.99320258,85.467,85.44,3.35424816]
[1773218337597,1.99320258,85.465,85.44,3.35424816]
[1773218337775,1.99320258,85.465,85.44,0.2]
[1773218338172,1.99320258,85.465,85.442,1.89834496]
[1773218339497,1.99320258,85.465,85.443,13.60205386]
[1773218340299,1.99320258,85.465,85.44,0.2]
[1773218340593,1.99320258,85.465,85.441,11.70398286]
[1773218340894,1.99320258,85.465,85.441,13.60232782]
[1773218341487,1.99320258,85.463,85.441,1.89834496]
[1773218341694,1.99320258,85.463,85.442,11.70384588]
[1773218341874,2.4,85.481,85.443,1.89834496]
[1773218341875,1.99320258,85.48,85.443,1.89834496]
[1773218342079,1.99320258,85.478,85.45,1.89834496]
[1773218342892,1.99320258,85.478,85.442,40.96346058]
[1773218343076,1.99320258,85.469,85.443,1.89834496]
[1773218343394,1.99320258,85.469,85.441,11.70398286]
[1773218343573,1.99320258,85.468,85.441,11.70398286]
[1773218344287,1.99320258,85.468,85.441,13.60232782]
[1773218344991,1.99320258,85.466,85.44,15.05831731]
[1773218345187,1.99320258,85.459,85.43,0.2]
[1773218345393,1.99320258,85.449,85.43,0.2]
[1773218346999,1.99320258,85.449,85.431,11.70535285]
[1773218347203,1.99320258,85.455,85.432,1.89834496]
[1773218348295,1.99320258,85.455,85.431,11.70535285]
[1773218348504,1.99320258,85.455,85.431,13.60369781]
[1773218348881,3.15834812,85.46,85.432,1.89834496]
[1773218349106,1.99320258,85.461,85.432,1.89834496]
[1773218349611,1.99320258,85.461,85.433,11.70507883]
[1773218349792,1.99320258,85.461,85.434,1.89834496]
[1773218351291,1.99320258,85.477,85.44,3.15834812]
[1773218351598,3.15834812,85.5,85.437,1.89834496]
[1773218351599,1.99320258,85.469,85.437,1.89834496]
[1773218353207,1.99320258,85.469,85.442,11.70384588]
[1773218353406,1.99320258,85.469,85.443,1.89834496]
[1773218353706,3.15834812,85.47,85.43,0.2]
[1773218353707,1.99320258,85.467,85.441,11.70386621]
[1773218353918,1.99320258,85.467,85.442,1.89834496]
[1773218354608,1.99320258,85.479,85.451,1.89834496]
[1773218356107,1.99320258,85.488,85.453,1.89834496]
[1773218357111,1.99320258,85.488,85.454,40.95770823]
[1773218357314,1.99320258,85.488,85.455,1.89834496]
[1773218357512,1.99320258,85.488,85.461,1.89834496]
[1773218360114,1.99320258,85.488,85.433,46.81998677]
[1773218360115,2.08406631,85.531,85.481,2.04071221]
[1773218360301,2.08406631,85.529,85.491,2.04071221]
[1773218360492,2.08406631,85.519,85.491,2.04071221]
[1773218362118,2.08406631,85.519,85.492,11.69700088]
[1773218365111,2.08406631,85.519,85.492,13.73771309]
[1773218365614,2.08406631,85.519,85.495,2.04071221]
[1773218368218,2.08406631,85.519,85.496,11.69645363]
[1773218369613,2.08406631,85.519,85.497,2.04071221]
[1773218369822,2.08406631,85.529,85.501,2.04071221]
[1773218370320,2.08406631,85.527,85.503,2.04071221]
[1773218370501,2.08406631,85.527,85.497,2.04071221]
[1773218370806,2.08406631,85.527,85.498,2.04071221]
[1773218371617,2.08406631,85.519,85.497,11.69625023]
[1773218371815,2.08406631,85.519,85.483,13.7389446]
[1773218373516,2.08406631,85.499,85.466,11.70055928]
[1773218373903,2.08406631,85.499,85.467,2.04071221]
[1773218374099,2.08406631,85.499,85.47,3.15834812]
[1773218374502,2.36,85.533,85.49,3.15834812]
[1773218374701,2.08406631,85.533,85.511,2.04071221]
[1773218374914,2.08406631,85.529,85.49,3.15834812]
[1773218375229,2.08406631,85.529,85.491,2.04071221]
[1773218375407,2.08406631,85.529,85.492,11.69700088]
[1773218375608,2.08406631,85.527,85.493,2.04071221]
[1773218376004,2.08406631,85.527,85.5,3.15834812]
[1773218376204,2.08406631,85.527,85.501,2.04071221]
[1773218377226,3.15834812,85.52,85.492,11.69700088]
[1773218377402,2.09039028,85.519,85.492,11.69700088]
[1773218378331,2.09039028,85.518,85.492,11.69700088]
[1773218380516,2.09039028,85.516,85.492,11.69700088]
[1773218380823,11.69358139,85.517,85.481,29.24595631]
[1773218380824,2.09039028,85.509,85.482,11.69836924]
[1773218382518,11.69481218,85.508,85.482,11.69836924]
[1773218382707,2.09039028,85.507,85.482,11.69836924]
[1773218383628,2.09039028,85.507,85.48,3.15834812]
[1773218383820,2.09039028,85.507,85.481,11.6985061]
[1773218386729,2.09039028,85.499,85.472,11.69973792]
[1773218388133,2.09039028,85.499,85.45,2.1]
[1773218388134,2.09039028,85.529,85.491,2.09559931]
[1773218388336,2.09039028,85.519,85.491,2.09559931]
[1773218391036,2.09039028,85.519,85.493,1.91547317]
[1773218393123,2.09039028,85.519,85.494,11.69672725]
[1773218393631,2.09039028,85.519,85.495,1.91547317]
[1773218394016,2.09039028,85.519,85.494,11.69672725]
[1773218394017,1.97584077,85.526,85.501,1.91547317]
[1773218395116,1.97584077,85.532,85.511,1.91547317]
[1773218395426,1.97584077,85.532,85.496,40.93758771]
[1773218395427,1.97584077,85.532,85.501,1.91547317]
[1773218396634,1.97584077,85.532,85.5,3.15834812]
[1773218396635,1.97584077,85.529,85.503,1.91547317]
[1773218397133,1.97584077,85.529,85.51,5.07382129]
[1773218397335,1.97584077,85.529,85.511,1.91547317]
[1773218398037,1.97584077,85.529,85.503,1.91547317]
[1773218398537,1.97584077,85.529,85.505,1.91547317]
[1773218400542,1.97584077,85.527,85.506,11.69508572]
[1773218401249,1.97584077,85.527,85.5,3.15834812]
[1773218401250,1.97584077,85.527,85.501,1.91547317]
[1773218401552,1.97584077,85.527,85.502,1.91547317]
[1773218402524,1.97584077,85.527,85.503,11.69549606]
[1773218402938,1.97584077,85.527,85.503,13.61096923]
[1773218403137,1.97584077,85.545,85.521,1.91547317]
[1773218403555,2.07584077,85.57,85.531,1.91547317]
[1773218403851,12.84758171,85.567,85.544,1.91547317]
[1773218404052,1.97584077,85.567,85.544,1.91547317]
[1773218404549,1.97584077,85.566,85.54,3.15834812]
[1773218405047,1.97584077,85.559,85.53,3.15834812]
[1773218406624,1.97584077,85.559,85.531,11.69166734]
[1773218408041,1.97584077,85.559,85.54,3.14975728]
[1773218408238,1.97584077,85.559,85.541,11.69030055]
[1773218409247,1.97584077,85.559,85.532,11.69153065]
[1773218410354,3.14975728,85.55,85.527,11.69219443]
[1773218410641,1.97584077,85.549,85.527,11.69219443]
[1773218411142,3.14975728,85.54,85.51,5.06523045]
[1773218411346,1.97584077,85.539,85.511,13.60987505]
[1773218411556,1.97584077,85.539,85.52,3.14975728]
[1773218411948,1.97584077,85.539,85.511,40.9304066]
[1773218411949,1.97584077,85.566,85.531,1.91547317]
[1773218412130,1.97584077,85.566,85.54,1.91547317]
[1773218412332,1.97584077,85.566,85.55,3.14975728]
[1773218412548,1.97584077,85.566,85.542,11.69015763]
[1773218413433,1.97584077,85.564,85.542,11.69015763]
[1773218416735,1.97584077,85.563,85.542,11.69015763]
[1773218418248,3.24975728,85.57,85.52,5.06523045]
[1773218418249,1.97584077,85.559,85.52,5.06523045]
[1773218418626,1.97584077,85.549,85.522,11.69289773]
[1773218419333,40.90600967,85.562,85.511,29.23598405]
[1773218419334,1.97584077,85.539,85.511,11.69440188]
[1773218421446,11.69071056,85.538,85.511,11.69440188]
[1773218421655,1.97641983,85.537,85.51,3.14975728]
[1773218421955,1.97641983,85.537,85.506,11.6950825]
[1773218422139,1.97641983,85.529,85.501,11.69573109]
[1773218422849,2.34,85.548,85.501,11.69573109]
[1773218422850,1.97641983,85.555,85.513,2.04246872]
[1773218423052,3.14975728,85.55,85.52,3.14975728]
[1773218423352,1.97641983,85.549,85.52,3.14975728]
[1773218423649,1.97641983,85.549,85.512,2.04246872]
[1773218425453,1.97641983,85.547,85.511,11.69427317]
[1773218426358,3.14975728,85.55,85.511,13.73674189]
[1773218426359,1.97641983,85.545,85.511,13.73674189]
[1773218426551,1.97641983,85.545,85.512,2.04246872]
[1773218426948,1.97641983,85.545,85.52,3.14975728]
[1773218428449,1.97641983,85.545,85.521,11.69303445]
[1773218428761,1.97641983,85.559,85.531,2.04246872]
[1773218428950,1.97641983,85.557,85.531,2.04246872]
[1773218429255,1.97641983,85.549,85.498,2.04246872]
[1773218429437,1.97641983,85.539,85.511,2.04246872]
[1773218429638,1.97641983,85.539,85.52,3.14975728]
[1773218430059,1.97641983,85.549,85.521,2.04246872]
[1773218430644,1.97641983,85.547,85.522,13.73536645]
[1773218432552,1.97641983,85.547,85.52,3.14975728]
[1773218432553,1.97641983,85.545,85.513,11.69412837]
[1773218432958,1.97641983,85.539,85.513,11.69412837]
[1773218433140,2.34,85.538,85.509,11.69466483]
[1773218433345,1.97641983,85.537,85.51,3.14975728]
[1773218433645,1.97641983,85.536,85.51,5.192226]
[1773218434567,1.97641983,85.536,85.511,13.7368706]
[1773218435068,1.97641983,85.534,85.511,13.7368706]
[1773218436049,1.97641983,85.534,85.496,2.04246872]
[1773218436254,1.97641983,85.529,85.5,5.192226]
[1773218436757,1.97641983,85.529,85.502,2.03108493]
[1773218437572,1.97641983,85.529,85.503,11.69549606]
[1773218438070,1.97641983,85.529,85.503,13.72658099]
[1773218438452,2.09410445,85.527,85.503,13.72658099]
[1773218440960,2.09410445,85.533,85.511,2.03108493]
[1773218441777,2.34,85.537,85.511,2.03108493]
[1773218442274,4.43410445,85.537,85.511,2.03108493]
[1773218442772,4.43410445,85.537,85.512,11.69426513]
[1773218442975,4.43410445,85.537,85.513,2.03108493]
[1773218443377,2.09410445,85.536,85.513,2.03108493]
[1773218445149,2.09410445,85.536,85.512,11.69426513]
[1773218445150,2.09410445,85.535,85.512,11.69426513]
[1773218445352,2.09410445,85.529,85.512,11.69426513]
[1773218446774,2.09410445,85.529,85.508,11.69481218]
[1773218448462,2.09410445,85.527,85.502,2.03108493]
[1773218448981,2.09410445,85.527,85.503,40.93423622]
[1773218449185,2.09410445,85.527,85.503,42.96532115]
[1773218449560,2.09410445,85.527,85.504,2.03837223]
[1773218452578,2.09410445,85.527,85.505,11.6952225]
[1773218454477,2.09410445,85.527,85.505,13.73359473]
[1773218454779,2.09410445,85.527,85.506,2.03837223]
[1773218455481,2.09410445,85.527,85.507,11.69494895]
[1773218455657,2.09410445,85.527,85.507,13.73332118]
[1773218457382,2.09410445,85.527,85.508,2.03837223]
[1773218458480,2.09410445,85.527,85.509,11.69467541]
[1773218458881,2.09410445,85.527,85.51,2.03837223]
[1773218459075,1.97062818,85.536,85.511,2.03837223]
[1773218459680,29.22254001,85.551,85.509,11.69467541]
[1773218459681,2.34,85.542,85.521,2.03837223]
[1773218460685,3.14975728,85.54,85.521,2.03837223]
[1773218460981,2.34,85.542,85.522,11.69289773]
[1773218461186,2.34,85.542,85.523,2.03837223]
[1773218461575,4.31062818,85.542,85.523,2.03837223]
[1773218462584,1.97062818,85.557,85.531,2.03837223]
[1773218462779,1.97062818,85.549,85.531,2.03837223]
[1773218462979,1.97062818,85.549,85.529,11.69184462]
[1773218462980,1.97062818,85.549,85.526,2.03837223]
[1773218463179,1.97062818,85.549,85.527,11.69221415]
[1773218463690,1.97062818,85.549,85.522,11.69285042]
[1773218463883,1.97062818,85.539,85.523,2.03837223]
[1773218467596,3.15234773,85.53,85.502,2.03837223]
[1773218467791,1.97062818,85.536,85.502,2.03837223]
[1773218468003,3.69383402,85.565,85.511,2.03837223]
[1773218468296,1.97062818,85.569,85.541,2.03837223]
[1773218469588,1.97062818,85.569,85.54,3.15234773]
[1773218469589,1.97062818,85.569,85.543,2.03837223]
[1773218471797,1.97062818,85.569,85.545,2.03837223]
[1773218474500,1.97062818,85.569,85.547,2.03837223]
[1773218475789,1.97062818,85.567,85.53,3.15234773]
[1773218475991,1.97062818,85.567,85.54,3.15234773]
[1773218476703,1.97062818,85.565,85.541,11.69030055]